bitfinex-derivatives/quotes_BTCF0:USTF0_20230901
["timestamp","ask_amount","ask_price","bid_price","bid_amount"]
[1693592837157,2.47936291,25487.0,25486.0,0.24552658]
[1693592837360,0.00392,25484.0,25483.0,0.147239]
[1693592837564,1.09219691,25484.0,25483.0,0.39278317]
[1693592838063,1.11219691,25484.0,25483.0,1.52422186]
[1693592839166,1.25943091,25484.0,25483.0,1.37698286]
[1693592839363,1.26043091,25484.0,25483.0,1.41398286]
[1693592839569,1.26043091,25484.0,25483.0,1.41400617]
[1693592839964,1.26043091,25484.0,25483.0,1.40000617]
[1693592839965,1.25943091,25484.0,25483.0,1.40000617]
[1693592840374,1.26043091,25484.0,25483.0,1.41900617]
[1693592841264,1.28043091,25484.0,25483.0,0.28754417]
[1693592841672,1.28043091,25484.0,25483.0,0.042]
[1693592844166,2.48043091,25484.0,25483.0,0.042]
[1693592845672,2.62766491,25484.0,25483.0,0.042]
[1693592845973,0.00392,25478.0,25477.0,0.147271]
[1693592846164,1.09230191,25478.0,25477.0,1.52450443]
[1693592846466,0.98292377,25478.0,25477.0,1.67177943]
[1693592846874,0.722558,25478.0,25477.0,1.84987261]
[1693592847070,0.4241,25478.0,25477.0,2.07492108]
[1693592847266,0.00392,25488.0,25481.0,0.3]
[1693592847461,0.03132667,25487.0,25483.0,1.1603]
[1693592847665,0.298349,25488.0,25487.0,0.441651]
[1693592847864,0.18652485,25489.0,25487.0,1.04378618]
[1693592848170,0.00392,25490.0,25488.0,1.012944]
[1693592848171,0.445528,25490.0,25488.0,1.012944]
[1693592848474,0.4241,25489.0,25488.0,0.588844]
[1693592848677,0.571306,25489.0,25488.0,0.588844]
[1693592848879,0.591306,25489.0,25488.0,0.588844]
[1693592849066,0.591306,25489.0,25488.0,0.61966218]
[1693592849573,0.742432,25489.0,25488.0,0.588844]
[1693592849774,0.920638,25489.0,25488.0,0.591844]
[1693592849973,1.17711291,25489.0,25488.0,0.594844]
[1693592850278,1.06773477,25489.0,25488.0,0.594844]
[1693592850486,1.03673477,25489.0,25488.0,0.596844]
[1693592850775,0.776432,25489.0,25488.0,0.596844]
[1693592850969,0.4581,25489.0,25488.0,0.596844]
[1693592851168,0.4581,25489.0,25488.0,0.62766218]
[1693592851469,0.97890691,25489.0,25488.0,0.596844]
[1693592851675,1.01673477,25489.0,25488.0,0.596844]
[1693592852088,0.98273477,25489.0,25488.0,0.446633]
[1693592852373,1.05673477,25489.0,25488.0,0.444633]
[1693592852680,1.08773477,25489.0,25488.0,0.447633]
[1693592852872,1.19711291,25489.0,25488.0,0.447633]
[1693592853478,1.16611291,25489.0,25488.0,0.444633]
[1693592853668,1.19711291,25489.0,25488.0,0.447633]
[1693592854069,1.16611291,25489.0,25488.0,0.444633]
[1693592854269,1.19711291,25489.0,25488.0,0.447633]
[1693592854472,0.974638,25489.0,25488.0,0.447633]
[1693592854667,1.19711291,25489.0,25488.0,0.447633]
[1693592856064,1.16611291,25489.0,25488.0,0.444633]
[1693592856369,1.14611291,25489.0,25488.0,0.444633]
[1693592856569,1.11211291,25489.0,25488.0,0.441633]
[1693592856774,0.923638,25489.0,25488.0,0.444633]
[1693592856970,0.923638,25489.0,25488.0,0.47545118]
[1693592857173,0.954638,25489.0,25488.0,0.47845118]
[1693592858186,0.954638,25489.0,25488.0,0.447633]
[1693592858374,0.920638,25489.0,25488.0,0.444633]
[1693592858679,0.954638,25489.0,25488.0,0.447633]
[1693592859066,0.954638,25489.0,25488.0,0.444633]
[1693592859373,1.06773477,25489.0,25488.0,0.447633]
[1693592859766,1.17711291,25489.0,25488.0,0.447633]
[1693592860074,1.2083421,25489.0,25488.0,0.447633]
[1693592860470,1.2083421,25489.0,25488.0,0.871733]
[1693592861782,0.98586719,25489.0,25488.0,0.871733]
[1693592861981,1.2083421,25489.0,25488.0,0.871733]
[1693592862180,0.96386719,25489.0,25488.0,0.868733]
[1693592862681,0.94386719,25489.0,25488.0,0.868733]
[1693592862887,0.96386719,25489.0,25488.0,0.868733]
[1693592863678,0.94386719,25489.0,25488.0,0.868733]
[1693592863879,0.96386719,25489.0,25488.0,0.868733]
[1693592864085,1.1863421,25489.0,25488.0,0.868733]
[1693592864285,1.07696396,25489.0,25488.0,0.868733]
[1693592864486,0.96386719,25489.0,25488.0,0.868733]
[1693592864787,1.1863421,25489.0,25488.0,0.868733]
[1693592865481,1.07696396,25489.0,25488.0,0.868733]
[1693592865678,0.96386719,25489.0,25488.0,0.868733]
[1693592866087,1.07324533,25489.0,25488.0,0.868733]
[1693592866288,1.1663421,25489.0,25488.0,0.868733]
[1693592866490,1.1863421,25489.0,25488.0,0.868733]
[1693592866787,1.1863421,25489.0,25488.0,0.721522]
[1693592867976,1.07324533,25489.0,25488.0,0.96705227]
[1693592868180,1.1863421,25489.0,25488.0,0.96505227]
[1693592868381,1.1863421,25489.0,25488.0,0.721522]
[1693592868886,0.09422919,25489.0,25488.0,1.2614653]
[1693592869076,0.07422919,25489.0,25488.0,1.2614653]
[1693592869476,0.07422919,25489.0,25488.0,1.29228348]
[1693592869696,0.05422919,25489.0,25488.0,1.29128348]
[1693592869885,0.07422919,25489.0,25488.0,1.04676218]
[1693592870084,0.07422919,25489.0,25488.0,1.29227502]
[1693592870996,0.043,25489.0,25488.0,1.29227502]
[1693592871293,0.023,25489.0,25488.0,1.29127502]
[1693592871493,0.007,25489.0,25488.0,1.28927502]
[1693592871693,0.017,25489.0,25488.0,1.29027502]
[1693592871890,0.01,25489.0,25488.0,1.29027502]
[1693592872093,0.017,25489.0,25488.0,1.29027502]
[1693592873792,0.007,25489.0,25488.0,1.28927502]
[1693592873993,0.007,25489.0,25488.0,1.29027502]
[1693592873994,0.017,25489.0,25488.0,1.29027502]
[1693592875294,0.01,25489.0,25488.0,1.29027502]
[1693592875496,0.017,25489.0,25488.0,1.29027502]
[1693592876388,0.017,25489.0,25488.0,2.42149743]
[1693592876591,0.017,25489.0,25488.0,2.74149743]
[1693592876888,0.0317195,25493.0,25489.0,0.4241]
[1693592877094,0.15657648,25495.0,25493.0,0.588728]
[1693592877294,0.15657648,25495.0,25494.0,0.4241]
[1693592877599,0.3468066,25496.0,25495.0,0.441513]
[1693592877789,0.4939736,25496.0,25495.0,0.89643118]
[1693592877984,0.5139736,25496.0,25495.0,0.89643118]
[1693592878798,0.5629736,25496.0,25495.0,0.90143118]
[1693592878993,0.5629736,25496.0,25495.0,1.04860318]
[1693592881095,0.82323737,25496.0,25495.0,0.870613]
[1693592881295,1.01303802,25496.0,25495.0,0.870613]
[1693592882904,0.70422065,25496.0,25495.0,0.870613]
[1693592883104,0.26022852,25496.0,25495.0,1.29406891]
[1693592883404,0.10362065,25496.0,25495.0,1.29407121]
[1693592883705,0.049,25496.0,25495.0,1.29407121]
[1693592884711,0.022,25496.0,25495.0,1.31207121]
[1693592885004,0.045,25496.0,25495.0,1.31407121]
[1693592885204,0.045,25496.0,25495.0,2.44501564]
[1693592885404,0.023,25496.0,25495.0,2.46201564]
[1693592885607,0.18828201,25500.0,25497.0,0.3]
[1693592885910,0.16052774,25503.0,25499.0,0.4241]
[1693592886211,0.00392,25503.0,25502.0,0.4241]
[1693592886410,0.00392,25503.0,25502.0,1.04343818]
[1693592886610,0.18030259,25503.0,25502.0,1.04343818]
[1693592887208,0.02392,25503.0,25502.0,1.1563619]
[1693592887398,0.02492,25503.0,25502.0,1.1563619]
[1693592887598,0.021,25503.0,25502.0,1.1563619]
[1693592887803,0.001,25503.0,25502.0,1.1563619]
[1693592888199,0.006,25503.0,25502.0,1.1573619]
[1693592888711,0.006,25503.0,25502.0,1.1563619]
[1693592889307,0.001,25503.0,25502.0,1.1593619]
[1693592891026,0.02,25503.0,25502.0,1.1673619]
[1693592895324,0.76227,25503.0,25502.0,0.12392372]
[1693592895520,1.03652,25503.0,25502.0,0.12392372]
[1693592895726,1.2322406,25503.0,25502.0,0.12392372]
[1693592895928,0.00392,25496.0,25495.0,0.294335]
[1693592896223,0.29825,25496.0,25495.0,0.571266]
[1693592896433,0.56072491,25496.0,25495.0,0.571266]
[1693592896729,0.45134677,25496.0,25495.0,0.718437]
[1693592897029,0.31825,25496.0,25495.0,0.718437]
[1693592897228,0.44762814,25496.0,25495.0,0.718437]
[1693592897426,0.44762814,25496.0,25495.0,0.591266]
[1693592897827,0.56072491,25496.0,25495.0,0.591266]
[1693592898030,0.57072491,25496.0,25495.0,0.578266]
[1693592898232,0.71788991,25496.0,25495.0,0.578266]
[1693592899022,0.71788991,25496.0,25495.0,0.572266]
[1693592899222,0.72688991,25496.0,25495.0,0.573266]
[1693592899432,0.35725,25496.0,25495.0,0.75125618]
[1693592899929,0.35425,25496.0,25495.0,0.75025618]
[1693592900631,0.72388991,25496.0,25495.0,0.572266]
[1693592901126,0.72188991,25496.0,25495.0,0.4241]
[1693592901530,0.61251177,25496.0,25495.0,0.571271]
[1693592901730,0.57472491,25496.0,25495.0,0.718442]
[1693592901922,0.46534677,25496.0,25495.0,0.718442]
[1693592903529,0.46534677,25496.0,25495.0,0.74926018]
[1693592903830,0.46534677,25496.0,25495.0,0.718442]
[1693592905419,0.45934677,25496.0,25495.0,0.718442]
[1693592905625,0.57472491,25496.0,25495.0,0.718442]
[1693592906232,0.445451,25494.0,25493.0,0.4241]
[1693592906433,0.68792591,25494.0,25493.0,0.571283]
[1693592906729,0.57854777,25494.0,25493.0,0.571283]
[1693592906934,0.465451,25494.0,25493.0,0.571283]
[1693592907134,0.485451,25494.0,25493.0,0.718466]
[1693592907532,0.465451,25494.0,25493.0,0.74928418]
[1693592907835,0.465451,25494.0,25493.0,0.76328418]
[1693592908335,0.465451,25494.0,25493.0,0.78228418]
[1693592909626,0.68792591,25494.0,25493.0,0.751466]
[1693592909826,0.68792591,25494.0,25493.0,0.604283]
[1693592910322,0.57854777,25494.0,25493.0,0.604283]
[1693592910932,0.68792591,25494.0,25493.0,0.604283]
[1693592911737,0.70792591,25494.0,25493.0,0.604283]
[1693592913531,0.59854777,25494.0,25493.0,0.604283]
[1693592913732,0.70792591,25494.0,25493.0,0.604283]
[1693592913924,0.59854777,25494.0,25493.0,0.604283]
[1693592914338,0.70792591,25494.0,25493.0,0.604283]
[1693592914636,0.59854777,25494.0,25493.0,0.604283]
[1693592914843,0.485451,25494.0,25493.0,0.751466]
[1693592916133,0.485451,25494.0,25493.0,0.78228418]
[1693592916633,0.338274,25494.0,25493.0,0.78228418]
[1693592916836,0.338274,25494.0,25493.0,0.751466]
[1693592917226,0.338274,25494.0,25493.0,0.78228418]
[1693592917931,0.318274,25494.0,25493.0,0.78228418]
[1693592919743,0.298274,25494.0,25493.0,0.78228418]
[1693592919947,0.318274,25494.0,25493.0,0.78228418]
[1693592920846,0.318274,25494.0,25493.0,0.751466]
[1693592921241,0.42765214,25494.0,25493.0,0.751466]
[1693592921740,0.54074891,25494.0,25493.0,0.751466]
[1693592922041,0.43137077,25494.0,25493.0,0.751466]
[1693592925335,0.56074891,25494.0,25493.0,0.751466]
[1693592925843,0.54074891,25494.0,25493.0,0.751466]
[1693592926045,0.338274,25494.0,25493.0,0.751466]
[1693592926545,0.43137077,25494.0,25493.0,0.751466]
[1693592927044,0.54074891,25494.0,25493.0,0.751466]
[1693592927240,0.43137077,25494.0,25493.0,0.751466]
[1693592927441,0.02392,25494.0,25493.0,0.92946718]
[1693592928544,0.02392,25494.0,25493.0,1.17496016]
[1693592929138,0.00392,25494.0,25493.0,1.17496016]
[1693592930248,0.31060797,25495.0,25493.0,1.32214316]
[1693592930445,0.30668797,25495.0,25494.0,0.70041116]
[1693592930639,0.1506,25495.0,25494.0,1.14194216]
[1693592931938,0.1506,25495.0,25494.0,1.14394216]
[1693592934552,0.30668797,25495.0,25494.0,1.14994216]
[1693592937351,0.32668797,25495.0,25494.0,1.14994216]
[1693592937550,0.1706,25495.0,25494.0,1.14994216]
[1693592937754,0.1706,25495.0,25494.0,1.11912398]
[1693592938252,0.47941737,25495.0,25494.0,1.11912398]
[1693592938453,1.17322977,25495.0,25494.0,0.25349298]
[1693592938650,1.42977891,25495.0,25494.0,0.008]
[1693592939556,1.66464363,25495.0,25494.0,0.008]
[1693592939947,1.89987672,25495.0,25494.0,0.008]
[1693592940146,1.665012,25495.0,25494.0,0.008]
[1693592940455,1.674012,25495.0,25494.0,0.005]
[1693592941543,1.681012,25495.0,25494.0,0.006]
[1693592941942,0.00392,25494.0,25493.0,0.147182]
[1693592942157,1.09202591,25494.0,25493.0,0.39269177]
[1693592942349,1.367259,25494.0,25493.0,0.39269177]
[1693592942952,1.25788086,25494.0,25493.0,0.39569177]
[1693592943151,1.03864777,25494.0,25493.0,0.42950995]
[1693592943352,0.925551,25494.0,25493.0,0.39869177]
[1693592943557,0.925551,25494.0,25493.0,1.11715777]
[1693592943558,0.03992,25494.0,25493.0,1.11715777]
[1693592943749,0.03992,25494.0,25493.0,1.14797595]
[1693592943950,0.187097,25494.0,25493.0,1.14797595]
[1693592944457,0.334274,25494.0,25493.0,1.14797595]
[1693592944857,0.334274,25494.0,25493.0,1.11715777]
[1693592945561,0.334274,25494.0,25493.0,1.14797595]
[1693592945749,0.58754777,25494.0,25493.0,0.81979177]
[1693592945954,0.58754777,25494.0,25493.0,0.67560977]
[1693592945955,0.57454777,25494.0,25493.0,0.67560977]
[1693592946257,0.59454777,25494.0,25493.0,0.67560977]
[1693592946650,0.70392591,25494.0,25493.0,0.67560977]
[1693592946851,0.59454777,25494.0,25493.0,0.67560977]
[1693592947253,0.59454777,25494.0,25493.0,0.82279277]
[1693592947557,0.21217516,25494.0,25493.0,1.28434177]
[1693592947757,0.17293258,25494.0,25493.0,1.28434177]
[1693592947958,0.17293258,25494.0,25493.0,1.31515995]
[1693592948257,0.22798574,25496.0,25493.0,2.44621224]
[1693592948456,0.19617516,25496.0,25495.0,0.4241]
[1693592948653,0.19617516,25496.0,25495.0,1.27829377]
[1693592949156,0.19617516,25496.0,25495.0,1.30911195]
[1693592951254,0.19617516,25496.0,25495.0,1.28911195]
[1693592952964,0.02392,25496.0,25495.0,0.96395177]
[1693592953161,0.465415,25496.0,25495.0,0.96395177]
[1693592953372,0.87368991,25496.0,25495.0,0.96395177]
[1693592954053,1.108923,25496.0,25495.0,0.96395177]
[1693592954559,1.660188,25496.0,25495.0,0.22550977]
[1693592954766,0.00392,25494.0,25493.0,0.4241]
[1693592955064,0.66792591,25494.0,25493.0,0.66960047]
[1693592955358,0.66792591,25494.0,25493.0,0.24550047]
[1693592955359,1.25920291,25494.0,25493.0,0.24550047]
[1693592955562,1.25920291,25494.0,25491.0,0.4241]
[1693592955563,0.00392,25492.0,25491.0,0.4241]
[1693592955759,0.83515091,25492.0,25491.0,0.66961055]
[1693592956954,1.25925091,25492.0,25491.0,0.24551055]
[1693592957155,0.00392,25490.0,25489.0,0.4241]
[1693592957361,0.75473223,25490.0,25489.0,0.66962228]
[1693592957664,0.77473223,25490.0,25489.0,0.66962228]
[1693592958353,0.66163546,25490.0,25489.0,0.81882828]
[1693592958670,0.66163546,25490.0,25489.0,0.85164646]
[1693592959058,0.66163546,25490.0,25489.0,0.81682828]
[1693592959256,0.66163546,25490.0,25489.0,0.99485246]
[1693592959661,0.66163546,25490.0,25489.0,0.96603428]
[1693592960464,0.66163546,25490.0,25489.0,0.96803428]
[1693592960859,0.66163546,25490.0,25489.0,0.82082828]
[1693592961160,0.88411037,25490.0,25489.0,0.81882828]
[1693592961358,0.88411037,25490.0,25489.0,0.81682828]
[1693592961961,0.88411037,25490.0,25489.0,0.81782828]
[1693592962455,0.19611546,25491.0,25489.0,1.70254628]
[1693592962770,0.19611546,25491.0,25490.0,0.66962228]
[1693592963067,0.19611546,25491.0,25490.0,1.30924046]
[1693592964257,0.19611546,25491.0,25490.0,1.31724046]
[1693592964458,0.19611546,25492.0,25490.0,1.31724046]
[1693592964764,0.19611546,25492.0,25491.0,0.66962228]
[1693592965067,0.19611546,25492.0,25491.0,1.14202246]
[1693592966059,0.445487,25492.0,25491.0,0.81681628]
[1693592966463,0.64148922,25492.0,25491.0,0.81681628]
[1693592966665,0.75458599,25492.0,25491.0,0.81681628]
[1693592966965,0.75458599,25492.0,25491.0,0.66962228]
[1693592967161,0.75458599,25492.0,25491.0,0.81681628]
[1693592967556,0.64148922,25492.0,25491.0,0.81681628]
[1693592967863,0.64148922,25492.0,25491.0,0.96401028]
[1693592968063,0.64148922,25492.0,25491.0,0.99482846]
[1693592968457,0.49430022,25492.0,25491.0,1.14202246]
[1693592970270,0.49430022,25492.0,25491.0,1.11120428]
[1693592970869,0.298298,25492.0,25491.0,1.14202246]
[1693592971073,0.49429387,25492.0,25491.0,1.14202246]
[1693592972972,0.65379387,25492.0,25491.0,1.14202246]
[1693592973668,0.19599587,25492.0,25491.0,1.28921646]
[1693592973859,0.34709987,25493.0,25491.0,1.11120428]
[1693592974059,0.19599587,25492.0,25491.0,0.441582]
[1693592974371,0.34318487,25492.0,25491.0,1.11118506]
[1693592974571,0.19599587,25492.0,25491.0,1.14200324]
[1693592974773,0.19599587,25492.0,25491.0,1.15000324]
[1693592975475,0.19599587,25492.0,25491.0,1.15300324]
[1693592975864,0.19599587,25492.0,25491.0,1.15000324]
[1693592976072,0.19599587,25492.0,25491.0,1.30019724]
[1693592976271,0.19599587,25493.0,25491.0,1.30019724]
[1693592976474,0.34317887,25493.0,25492.0,0.70042124]
[1693592976775,0.34317887,25493.0,25492.0,1.11117006]
[1693592976980,0.34317887,25493.0,25492.0,1.14198824]
[1693592977367,0.294366,25493.0,25492.0,1.14198824]
[1693592978270,0.40766414,25493.0,25492.0,0.81679206]
[1693592978471,0.55484714,25493.0,25492.0,0.81679206]
[1693592978676,0.445469,25493.0,25492.0,0.81679206]
[1693592978873,0.55856577,25493.0,25492.0,0.81679206]
[1693592979580,0.445469,25493.0,25492.0,0.81679206]
[1693592980080,0.445469,25493.0,25492.0,0.84761024]
[1693592980582,0.66794391,25493.0,25492.0,0.81679206]
[1693592980879,0.55856577,25493.0,25492.0,0.66960306]
[1693592983581,0.66794391,25493.0,25492.0,0.66960306]
[1693592983781,0.55856577,25493.0,25492.0,0.66960306]
[1693592984881,0.445469,25493.0,25492.0,0.66960306]
[1693592985078,0.55856577,25493.0,25492.0,0.66960306]
[1693592985280,0.55856577,25493.0,25492.0,0.81679206]
[1693592985477,0.445469,25493.0,25492.0,0.84761024]
[1693592986875,0.00392,25493.0,25492.0,0.70042124]
[1693592987674,0.00392,25493.0,25492.0,0.66960306]
[1693592988784,0.11701677,25493.0,25492.0,0.66960306]
[1693592988974,0.22639491,25493.0,25492.0,0.66960306]
[1693592989378,0.11701677,25493.0,25492.0,0.66960306]
[1693592989579,0.22639491,25493.0,25492.0,0.66960306]
[1693592990382,0.11701677,25493.0,25492.0,0.66960306]
[1693592990983,0.11701677,25493.0,25492.0,0.70042124]
[1693592991184,0.11701677,25493.0,25492.0,0.66960306]
[1693592992183,0.00392,25493.0,25492.0,0.66960306]
[1693592992483,0.00392,25493.0,25492.0,0.70042124]
[1693592992880,0.00392,25493.0,25492.0,0.66960306]
[1693592993082,0.00392,25493.0,25492.0,0.70042124]
[1693592993284,0.00392,25493.0,25492.0,0.66960306]
[1693592993483,0.11701677,25493.0,25492.0,0.66960306]
[1693592994086,0.24639491,25493.0,25492.0,0.66960306]
[1693592995888,0.48172946,25493.0,25492.0,0.66960306]
[1693592997592,0.46172946,25493.0,25492.0,0.66960306]
[1693592997789,0.72734144,25493.0,25492.0,0.21085116]
[1693592997990,0.00392,25491.0,25490.0,0.4241]
[1693592998196,0.22639491,25491.0,25490.0,0.66963406]
[1693592998787,0.46180973,25491.0,25490.0,0.66963406]
[1693592999100,0.46180973,25491.0,25490.0,0.69063406]
[1693593000191,0.46180973,25491.0,25490.0,0.68763406]
[1693593000392,0.00392,25485.0,25484.0,0.4241]
[1693593000601,0.42266659,25485.0,25484.0,0.66966329]
[1693593000793,0.65049491,25485.0,25484.0,0.24556329]
[1693593001097,0.65049491,25485.0,25482.0,0.4241]
[1693593001098,0.00392,25483.0,25482.0,0.4241]
[1693593001297,0.22639491,25483.0,25482.0,0.4241]
[1693593001690,0.42252942,25483.0,25482.0,0.4241]
[1693593002799,0.42352942,25483.0,25482.0,0.4261]
[1693593003401,0.38422213,25483.0,25482.0,0.4261]
[1693593003699,0.01992,25483.0,25482.0,0.45991818]
[1693593003893,0.016,25483.0,25482.0,0.90401818]
[1693593004093,0.17282722,25483.0,25482.0,0.90401818]
[1693593004293,0.016,25483.0,25482.0,0.90401818]
[1693593005201,0.11701677,25483.0,25482.0,0.8682]
[1693593005397,0.00492,25483.0,25482.0,0.8682]
[1693593006104,0.00492,25483.0,25482.0,0.47491818]
[1693593006696,0.00392,25483.0,25482.0,0.47491818]
[1693593006896,0.01692,25483.0,25482.0,0.45491818]
[1693593007206,0.01692,25483.0,25482.0,0.47491818]
[1693593007502,0.01692,25483.0,25482.0,0.4241]
[1693593007503,0.23939491,25483.0,25482.0,0.4241]
[1693593008499,0.00392,25481.0,25480.0,0.153]
[1693593008704,0.00392,25480.0,25477.0,0.03178017]
[1693593009006,0.00392,25480.0,25479.0,0.4241]
[1693593009205,0.00392,25480.0,25479.0,1.55577453]
[1693593009397,0.00392,25480.0,25479.0,1.60659271]
[1693593009703,0.00392,25480.0,25479.0,1.57577453]
[1693593010400,0.00492,25480.0,25479.0,1.58177453]
[1693593010598,0.22739491,25480.0,25479.0,1.58177453]
[1693593011002,0.22739491,25480.0,25479.0,0.4501]
[1693593012104,0.11801677,25480.0,25479.0,0.4841]
[1693593012796,0.22739491,25480.0,25479.0,0.4841]
[1693593013601,0.22739491,25480.0,25479.0,0.4581]
[1693593013903,0.22639491,25480.0,25479.0,0.4321]
[1693593015110,0.11701677,25480.0,25479.0,0.4321]
[1693593015800,0.16342,25482.0,25479.0,0.4521]
[1693593016004,0.16342,25482.0,25481.0,0.4241]
[1693593016702,0.16342,25482.0,25481.0,0.45491818]
[1693593017104,0.325669,25482.0,25481.0,0.867865]
[1693593018008,0.326669,25482.0,25481.0,0.867865]
[1693593018212,0.326669,25482.0,25481.0,0.89868318]
[1693593018413,0.473918,25482.0,25481.0,0.89868318]
[1693593018604,0.50383238,25482.0,25481.0,0.89868318]
[1693593018917,0.21033438,25482.0,25481.0,0.89868318]
[1693593019210,0.05083438,25482.0,25481.0,0.89868318]
[1693593019806,0.19808338,25482.0,25481.0,0.89868318]
[1693593020514,0.42055829,25482.0,25481.0,0.867865]
[1693593020711,0.45842915,25482.0,25481.0,0.867865]
[1693593020918,0.60932915,25482.0,25481.0,0.867865]
[1693593021913,0.75657815,25482.0,25481.0,0.4261]
[1693593022112,0.90382715,25482.0,25481.0,0.4261]
[1693593022411,1.01320529,25482.0,25481.0,0.4261]
[1693593022808,1.01320529,25482.0,25481.0,0.42586965]
[1693593023014,1.03320529,25482.0,25481.0,0.42586965]
[1693593023919,1.45730529,25482.0,25481.0,0.00176965]
[1693593028421,1.43730529,25482.0,25481.0,0.00176965]
[1693593028621,1.45730529,25482.0,25481.0,0.00176965]
[1693593029824,1.45715309,25482.0,25481.0,0.00176965]
[1693593034516,0.0039278,25475.0,25474.0,0.718857]
[1693593034825,1.3140008,25475.0,25473.0,0.20494416]
[1693593035029,0.4241,25474.0,25473.0,0.294598]
[1693593035321,0.97908477,25474.0,25473.0,0.294598]
[1693593035721,1.08846291,25474.0,25473.0,0.294598]
[1693593036821,1.09146291,25474.0,25473.0,0.294598]
[1693593037720,0.0039278,25473.0,25471.0,0.307411]
[1693593037922,1.08849891,25472.0,25471.0,0.474723]
[1693593038229,0.0039278,25468.0,25467.0,0.17890904]
[1693593038528,0.8700118,25469.0,25467.0,2.19716498]
[1693593038825,0.7226818,25469.0,25468.0,1.13214694]
[1693593039035,0.7226818,25469.0,25468.0,1.42680894]
[1693593039036,0.8700118,25469.0,25468.0,1.42680894]
[1693593040522,0.8710118,25469.0,25468.0,1.46380894]
[1693593040722,0.8740118,25469.0,25468.0,1.50080894]
[1693593041624,0.8740118,25469.0,25468.0,1.53162712]
[1693593043130,0.8740118,25469.0,25468.0,1.50080894]
[1693593043825,0.8740118,25469.0,25468.0,1.53162712]
[1693593044132,0.722754,25469.0,25468.0,1.69895812]
[1693593045329,0.722754,25469.0,25468.0,1.67895812]
[1693593045532,0.722754,25469.0,25468.0,1.69895812]
[1693593046328,0.722754,25469.0,25468.0,1.66813994]
[1693593046624,0.885854,25469.0,25468.0,1.52080894]
[1693593046819,0.885854,25469.0,25468.0,1.50080894]
[1693593047217,0.99895077,25469.0,25468.0,1.50080894]
[1693593047623,1.25958571,25469.0,25468.0,1.20614694]
[1693593048030,0.004,25469.0,25468.0,2.31745097]
[1693593048228,0.004,25469.0,25468.0,2.23957094]
[1693593048527,0.004,25469.0,25468.0,2.27038912]
[1693593049134,0.0320764,25472.0,25468.0,2.45911739]
[1693593049432,0.881796,25474.0,25472.0,0.441924]
[1693593049635,0.881796,25474.0,25473.0,0.01081156]
[1693593049935,0.83179277,25474.0,25473.0,0.30541556]
[1693593050336,0.94117091,25474.0,25473.0,0.30541556]
[1693593050832,0.94817091,25474.0,25473.0,0.30541556]
[1693593051030,1.10039871,25474.0,25473.0,0.01081156]
[1693593051538,1.24769871,25474.0,25473.0,0.01081156]
[1693593052040,1.10039871,25474.0,25473.0,0.15811356]
[1693593052225,0.8779238,25474.0,25473.0,0.30541556]
[1693593052432,0.90998004,25474.0,25473.0,0.30541556]
[1693593052732,1.01935818,25474.0,25473.0,0.30541556]
[1693593053432,1.13145495,25474.0,25473.0,0.30541556]
[1693593053632,1.13245495,25474.0,25473.0,0.30541556]
[1693593053832,0.90998004,25474.0,25473.0,0.30541556]
[1693593054030,0.04005624,25474.0,25473.0,0.60001956]
[1693593054233,0.008,25474.0,25473.0,2.47603861]
[1693593054535,0.008,25474.0,25473.0,2.58485686]
[1693593054734,0.4241,25479.0,25473.0,2.58485686]
[1693593054935,0.45613423,25479.0,25477.0,0.4241]
[1693593055241,0.03203423,25479.0,25478.0,1.05482174]
[1693593055439,0.4241,25481.0,25478.0,1.19127656]
[1693593055632,0.4241,25484.0,25480.0,0.4241]
[1693593055833,0.4241,25484.0,25483.0,0.01081156]
[1693593056028,0.15653147,25487.0,25483.0,1.04388756]
[1693593056335,0.15653147,25487.0,25486.0,0.43491156]
[1693593056535,0.15797559,25487.0,25486.0,0.87659256]
[1693593056833,0.17947332,25487.0,25486.0,0.90741074]
[1693593057034,0.29257009,25487.0,25486.0,0.90741074]
[1693593057238,0.59632256,25487.0,25486.0,0.87659256]
[1693593057431,0.48479109,25487.0,25486.0,0.87959256]
[1693593057633,0.64132256,25487.0,25486.0,0.87959256]
[1693593057833,0.52822579,25487.0,25486.0,0.91041074]
[1693593058035,0.35669432,25487.0,25486.0,0.91041074]
[1693593058229,0.3702502,25487.0,25486.0,0.91341074]
[1693593058541,0.37169421,25487.0,25486.0,0.91341074]
[1693593058933,0.48334697,25487.0,25486.0,0.91341074]
[1693593059241,0.48334697,25487.0,25486.0,0.88259256]
[1693593059535,0.48479097,25487.0,25486.0,0.88259256]
[1693593059740,0.48334697,25487.0,25486.0,0.88259256]
[1693593059944,0.3716942,25487.0,25486.0,0.88259256]
[1693593060144,0.5282257,25487.0,25486.0,0.73536556]
[1693593060442,0.3702502,25487.0,25486.0,0.73236556]
[1693593060643,0.3402502,25487.0,25486.0,0.73236556]
[1693593060844,0.47962834,25487.0,25486.0,0.73536556]
[1693593061040,0.67400267,25487.0,25486.0,0.58813856]
[1693593061342,0.67544672,25487.0,25486.0,0.58813856]
[1693593061530,0.78854349,25487.0,25486.0,0.58813856]
[1693593061932,0.48334697,25487.0,25486.0,0.73536556]
[1693593062129,0.48479093,25487.0,25486.0,0.73536556]
[1693593062332,0.3702502,25487.0,25486.0,0.73536556]
[1693593062730,0.3702502,25487.0,25486.0,0.88259256]
[1693593063143,0.045,25487.0,25486.0,1.06063774]
[1693593063346,0.045,25487.0,25486.0,1.08063774]
[1693593063742,0.15653147,25492.0,25486.0,1.08063774]
[1693593063940,0.15653147,25493.0,25491.0,0.43491156]
[1693593064145,0.03157083,25493.0,25492.0,0.89649418]
[1693593064339,0.4654888,25493.0,25492.0,0.4241]
[1693593064539,0.4654888,25493.0,25492.0,0.43491156]
[1693593064540,0.62202027,25493.0,25492.0,0.43491156]
[1693593064834,0.84593899,25493.0,25492.0,0.43491156]
[1693593065043,0.68796371,25493.0,25492.0,0.43491156]
[1693593065549,1.25925071,25493.0,25492.0,0.01081156]
[1693593065735,1.41722602,25493.0,25492.0,0.01081156]
[1693593065943,1.45635888,25493.0,25492.0,0.01081156]
[1693593066134,1.26069455,25493.0,25492.0,0.01081156]
[1693593066547,1.26169455,25493.0,25492.0,0.01181156]
[1693593066749,1.45735888,25493.0,25492.0,0.01281156]
[1693593066948,1.41789973,25493.0,25492.0,0.01281156]
[1693593067143,1.41789973,25493.0,25492.0,0.01381156]
[1693593067144,1.26169455,25493.0,25492.0,0.01381156]
[1693593067444,1.26169455,25493.0,25492.0,0.01281156]
[1693593067653,1.26169455,25493.0,25492.0,0.01681156]